bitfinex-derivatives/quotes_BTCF0:USTF0_20241210
["timestamp","ask_amount","ask_price","bid_price","bid_amount"]
[1733794916209,0.002,97615.0,97614.0,1.51132329]
[1733794917618,0.002,97615.0,97614.0,1.51132331]
[1733794917911,0.002,97615.0,97614.0,1.69489325]
[1733794918101,0.002,97615.0,97614.0,1.51132331]
[1733794918302,0.002,97615.0,97614.0,1.69489325]
[1733794918506,0.002,97615.0,97614.0,1.51132331]
[1733794918707,0.002,97615.0,97614.0,1.91693828]
[1733794918903,0.002,97615.0,97614.0,2.47207543]
[1733794919104,0.01269562,97639.0,97614.0,2.47207752]
[1733794919307,0.10072189,97640.0,97630.0,0.051185]
[1733794919502,0.10072189,97640.0,97631.0,0.00832331]
[1733794919705,0.10072189,97640.0,97632.0,0.05950731]
[1733794919913,0.10072189,97640.0,97635.0,1.5]
[1733794920107,0.10072189,97640.0,97635.0,1.50832331]
[1733794920308,0.3618,97636.0,97635.0,1.55950531]
[1733794921112,0.3628,97636.0,97635.0,1.55950531]
[1733794921917,0.3618,97636.0,97635.0,1.55950531]
[1733794922420,0.001,97636.0,97635.0,1.55950531]
[1733794922912,0.001,97636.0,97635.0,1.60431061]
[1733794923112,0.001,97636.0,97635.0,1.5595031]
[1733794923304,0.001,97636.0,97635.0,1.5625031]
[1733794923509,0.3608,97644.0,97640.0,0.05118]
[1733794923706,0.3608,97644.0,97641.0,0.19191271]
[1733794923909,0.3608,97644.0,97642.0,0.0083211]
[1733794924109,0.3608,97644.0,97643.0,0.0083211]
[1733794924805,0.3618,97644.0,97643.0,0.0083211]
[1733794926017,0.3618,97644.0,97643.0,0.19391271]
[1733794926209,0.001,97644.0,97643.0,0.0103211]
[1733794926410,0.3608,97653.0,97643.0,0.0551268]
[1733794926720,0.3608,97653.0,97649.0,0.18367178]
[1733794927016,0.3608,97653.0,97650.0,0.0083211]
[1733794927216,0.3608,97653.0,97651.0,0.0083211]
[1733794927420,0.3608,97653.0,97652.0,0.0083211]
[1733794927712,0.3608,97653.0,97642.0,0.18367178]
[1733794927918,0.3608,97653.0,97637.0,0.18367178]
[1733794927919,0.3608,97644.0,97637.0,0.18367178]
[1733794928124,0.3608,97644.0,97643.0,0.002]
[1733794928810,0.3608,97644.0,97632.0,0.051184]
[1733794929008,0.51269989,97644.0,97643.0,0.002]
[1733794929213,0.7216,97644.0,97643.0,0.002]
[1733794929416,0.84365317,97644.0,97643.0,0.002]
[1733794929607,0.3608,97644.0,97642.0,0.051179]
[1733794929818,0.3608,97644.0,97643.0,1.5]
[1733794930013,0.3608,97644.0,97643.0,1.501]
[1733794930608,0.3618,97644.0,97643.0,1.5]
[1733794931615,0.45334599,97644.0,97643.0,1.5]
[1733794932413,0.3618,97644.0,97643.0,1.5]
[1733794932814,0.45234599,97644.0,97643.0,1.5]
[1733794933013,0.45334599,97644.0,97643.0,1.5]
[1733794933214,0.3618,97644.0,97643.0,1.5]
[1733794933413,0.45234065,97644.0,97643.0,1.5]
[1733794933717,0.3618,97644.0,97643.0,1.5]
[1733794934923,0.45333697,97644.0,97643.0,1.5]
[1733794935110,0.3618,97644.0,97643.0,1.5]
[1733794935822,0.001,97644.0,97643.0,1.5]
[1733794936017,0.001,97644.0,97643.0,1.539]
[1733794937125,0.00011577,97657.0,97643.0,1.541]
[1733794937324,0.001,97644.0,97643.0,1.593178]
[1733794937520,0.001,97644.0,97643.0,1.59581954]
[1733794937721,0.001,97644.0,97643.0,1.60093965]
[1733794939527,0.3608,97652.0,97651.0,0.051174]
[1733794939717,0.00111577,97657.0,97656.0,0.051171]
[1733794940023,0.00111577,97657.0,97656.0,0.0594911]
[1733794940024,0.00011577,97657.0,97656.0,0.0594911]
[1733794940219,0.00011577,97657.0,97656.0,1.5594911]
[1733794940622,0.00011577,97657.0,97656.0,1.56213264]
[1733794940923,0.00111577,97657.0,97656.0,1.56213264]
[1733794941323,0.00311577,97657.0,97656.0,1.56213264]
[1733794942112,0.00311577,97657.0,97656.0,1.60692738]
[1733794944021,0.00311577,97657.0,97656.0,1.56213264]
[1733794944223,0.00311577,97657.0,97656.0,1.60692712]
[1733794944423,0.00311577,97657.0,97656.0,1.56213264]
[1733794944815,0.00311577,97657.0,97656.0,1.57457176]
[1733794946919,0.4401,97679.0,97656.0,2.22935888]
[1733794947116,0.4401,97679.0,97666.0,0.1835247]
[1733794947322,0.45236032,97679.0,97676.0,0.051161]
[1733794947615,0.45236032,97679.0,97677.0,1.51096164]
[1733794947826,0.45236032,97679.0,97678.0,0.0083201]
[1733794948023,0.45245501,97679.0,97678.0,0.0083201]
[1733794948427,0.38215501,97679.0,97678.0,1.5083201]
[1733794948618,0.38215501,97679.0,97678.0,1.51096164]
[1733794948815,0.38315501,97679.0,97678.0,1.51096164]
[1733794949222,0.01009469,97679.0,97678.0,1.51096164]
[1733794949524,0.3608,97691.0,97679.0,0.051159]
[1733794949722,0.3608,97691.0,97690.0,0.23467019]
[1733794950026,0.3608,97691.0,97690.0,0.10426217]
[1733794950429,0.36091452,97691.0,97690.0,1.84873071]
[1733794950646,0.00011452,97691.0,97690.0,1.84873071]
[1733794950931,0.00011452,97691.0,97690.0,1.56211564]
[1733794951319,0.00811452,97691.0,97690.0,1.56311564]
[1733794951518,0.00811452,97691.0,97690.0,1.55479554]
[1733794951723,0.00811452,97691.0,97690.0,1.56311143]
[1733794952927,0.01211452,97691.0,97690.0,1.56311143]
[1733794953430,0.01211452,97691.0,97690.0,1.57537321]
[1733794956421,0.3608,97710.0,97690.0,1.57537321]
[1733794956422,0.3608,97710.0,97699.0,0.051149]
[1733794956622,0.3608,97710.0,97709.0,0.051144]
[1733794956822,0.36152,97719.0,97709.0,0.051144]
[1733794956823,0.3608,97719.0,97718.0,0.051139]
[1733794957127,0.3608,97719.0,97718.0,1.55945489]
[1733794957325,0.3608,97732.0,97731.0,0.051132]
[1733794957529,0.36087743,97732.0,97731.0,0.05433042]
[1733794957733,0.36087743,97732.0,97731.0,0.0620878]
[1733794958028,0.36087743,97732.0,97731.0,1.55697092]
[1733794958226,7.743e-05,97732.0,97731.0,1.56208673]
[1733794958424,7.743e-05,97732.0,97731.0,1.56208672]
[1733794958624,0.00907743,97732.0,97731.0,1.55797092]
[1733794958824,0.00907743,97732.0,97731.0,1.50683892]
[1733794959126,0.00907743,97732.0,97731.0,0.00683892]
[1733794959331,0.00907743,97732.0,97731.0,0.00364154]
[1733794959530,0.01407743,97732.0,97731.0,0.00464154]
[1733794961329,0.01407743,97732.0,97731.0,0.00783922]
[1733794961534,0.02626303,97732.0,97731.0,0.00783925]
[1733794961724,0.02626303,97732.0,97731.0,0.00464154]
[1733794962234,0.051133,97730.0,97710.0,0.051143]
[1733794962431,0.32626303,97732.0,97710.0,0.051143]
[1733794962432,0.3608,97711.0,97710.0,0.051143]
[1733794962626,0.3608,97711.0,97710.0,0.05945804]
[1733794963529,0.3608,97711.0,97710.0,1.55945804]
[1733794963736,0.3608,97711.0,97710.0,1.55434109]
[1733794964538,0.3628,97711.0,97710.0,1.55434109]
[1733794965933,0.3638,97711.0,97710.0,1.55434109]
[1733794966635,0.3638,97711.0,97710.0,1.50319809]
[1733794966839,0.414943,97711.0,97710.0,0.00319809]
[1733794967937,0.3638,97711.0,97692.0,0.01211431]
[1733794968128,0.411952,97693.0,97691.0,1.50056]
[1733794968329,0.0832,97692.0,97691.0,1.5]
[1733794969235,0.0832,97692.0,97677.0,0.01197208]
[1733794969433,0.3608,97680.0,97678.0,0.05116]
[1733794969637,0.3608,97680.0,97679.0,1.5]
[1733794970931,0.3618,97680.0,97679.0,1.507]
[1733794971835,0.3618,97680.0,97679.0,1.511]
[1733794972439,0.3618,97680.0,97679.0,1.507]
[1733794972638,0.3618,97680.0,97679.0,1.511]
[1733794973637,0.3608,97680.0,97679.0,1.504]
[1733794973950,0.3608,97680.0,97679.0,1.511]
[1733794973951,0.3618,97680.0,97679.0,1.511]
[1733794974137,0.001,97680.0,97679.0,1.511]
[1733794974532,0.001,97680.0,97679.0,1.562159]
[1733794974949,0.001,97680.0,97679.0,1.561159]
[1733794975629,0.001,97680.0,97679.0,1.60294482]
[1733794975838,0.001,97680.0,97679.0,1.60594482]
[1733794976438,0.001,97680.0,97679.0,1.60294482]
[1733794976643,0.3608,97685.0,97684.0,0.051157]
[1733794977031,0.3608,97685.0,97684.0,0.09594282]
[1733794977244,0.3608,97685.0,97684.0,1.59594282]
[1733794977441,0.3608,97693.0,97684.0,1.54478582]
[1733794977632,0.3608,97693.0,97687.0,0.051155]
[1733794977839,0.3608,97693.0,97691.0,0.051153]
[1733794979340,0.3608,97703.0,97701.0,0.051148]
[1733794979636,0.3608,97703.0,97692.0,0.04478049]
[1733794979637,0.411947,97703.0,97692.0,0.23437441]
[1733794979832,0.10072189,97702.0,97693.0,0.04477962]
[1733794980032,0.10072189,97702.0,97694.0,0.04797819]
[1733794980240,0.36152,97703.0,97695.0,0.09912919]
[1733794980441,0.36152,97703.0,97696.0,0.00319857]
[1733794980442,0.3608,97703.0,97696.0,0.00319857]
[1733794980639,0.3638,97703.0,97697.0,0.00319857]
[1733794980842,0.3638,97703.0,97698.0,0.00319857]
[1733794981045,0.3638,97703.0,97695.0,0.051151]
[1733794981046,0.3638,97703.0,97699.0,0.00319857]
[1733794981246,0.3608,97703.0,97700.0,0.00319857]
[1733794981546,0.3608,97703.0,97701.0,0.00319857]
[1733794981735,0.3628,97703.0,97702.0,0.00319857]
[1733794982454,0.3608,97703.0,97702.0,1.50319857]
[1733794983347,0.3608,97703.0,97702.0,1.50419857]
[1733794984142,0.3608,97703.0,97702.0,1.50619857]
[1733794987347,0.3608,97703.0,97702.0,1.50419857]
[1733794987552,0.3608,97703.0,97702.0,1.50619857]
[1733794988846,0.45233389,97703.0,97702.0,1.50619857]
[1733794989250,0.3608,97703.0,97702.0,1.50619857]
[1733794990444,0.45233389,97703.0,97702.0,1.50619857]
[1733794991247,0.3608,97703.0,97702.0,1.50619857]
[1733794991454,0.3608,97703.0,97702.0,0.00619857]
[1733794992248,0.3608,97703.0,97702.0,0.00619855]
[1733794992650,0.3608,97703.0,97702.0,0.00419855]
[1733794992853,0.3608,97703.0,97702.0,0.00619855]
[1733794993350,0.3608,97703.0,97702.0,1.50619855]
[1733794993547,0.3608,97703.0,97702.0,1.50519855]
[1733794993748,0.3608,97703.0,97702.0,1.51131621]
[1733794994347,0.3608,97703.0,97702.0,1.50931621]
[1733794994549,0.3608,97703.0,97702.0,1.51131621]
[1733794994942,0.3608,97703.0,97702.0,1.50931621]
[1733794995149,0.3608,97703.0,97702.0,1.69453762]
[1733794995349,6.14772162,97711.0,97702.0,1.67909337]
[1733794995668,6.14772162,97711.0,97710.0,0.23485624]
[1733794995669,6.14696162,97711.0,97710.0,0.23485624]
[1733794995847,6.14696162,97711.0,97710.0,0.10423637]
[1733794996153,6.14696162,97711.0,97710.0,0.41011088]
[1733794996348,6.14696162,97711.0,97710.0,0.66302619]
[1733794996551,6.14696162,97711.0,97710.0,0.10423637]
[1733794996955,6.14796162,97711.0,97710.0,0.10423637]
[1733794997654,6.14996162,97711.0,97710.0,0.10423637]
[1733794998249,6.14996162,97711.0,97710.0,0.00831621]
[1733794998765,6.23036162,97711.0,97710.0,0.00831519]
[1733794999453,6.14896162,97711.0,97710.0,0.25317571]
[1733794999655,6.14896162,97711.0,97710.0,0.00831519]
[1733795000262,6.14896162,97711.0,97710.0,1.50831519]
[1733795002758,6.14896162,97711.0,97710.0,1.75323843]
[1733795003254,6.14896162,97711.0,97710.0,1.50831519]
[1733795003665,6.14896162,97711.0,97710.0,1.75327705]
[1733795004057,6.14896162,97711.0,97710.0,1.69203717]
[1733795004257,6.14896162,97711.0,97710.0,1.50831519]
[1733795004863,6.24057963,97711.0,97710.0,1.50831519]
[1733795005160,6.24057963,97711.0,97710.0,1.75327731]
[1733795005161,6.14896162,97711.0,97710.0,1.75327731]
[1733795005358,6.14896162,97711.0,97710.0,1.50831545]
[1733795005554,6.14896162,97711.0,97710.0,1.88308527]
[1733795005752,6.14896162,97711.0,97710.0,1.63799014]
[1733795006964,6.14896162,97711.0,97710.0,2.19577712]
[1733795007264,6.14896162,97711.0,97710.0,1.88990261]
[1733795007458,6.14896162,97711.0,97710.0,2.19623278]
[1733795008957,6.14896162,97711.0,97710.0,1.93954562]
[1733795009158,6.14896162,97711.0,97710.0,2.19070564]
[1733795009353,6.14896162,97711.0,97710.0,1.93954562]
[1733795009554,6.14896162,97711.0,97710.0,1.88435482]
[1733795009867,6.14896162,97711.0,97710.0,2.29240399]
[1733795009868,6.12593789,97711.0,97710.0,2.29240399]
[1733795010067,5.82904109,97711.0,97710.0,2.29240399]
[1733795012857,5.82904109,97711.0,97710.0,2.29301993]
[1733795013059,5.82904109,97711.0,97710.0,2.28470448]
[1733795013366,5.82904109,97711.0,97710.0,2.29301793]
[1733795014865,5.82904109,97711.0,97710.0,2.28470448]
[1733795015063,5.82904109,97711.0,97710.0,2.29301794]
[1733795018365,5.82904109,97711.0,97710.0,2.29243329]
[1733795018766,5.82904109,97711.0,97710.0,2.29256116]
[1733795018971,5.77148646,97711.0,97710.0,2.59256116]
[1733795019275,5.6312573,97711.0,97710.0,2.59256116]
[1733795020067,5.40324127,97711.0,97710.0,2.59256116]
[1733795020276,5.32188943,97711.0,97710.0,2.98225998]
[1733795021166,5.32188943,97711.0,97710.0,2.977144]
[1733795021672,5.32188943,97711.0,97710.0,2.681144]
[1733795021861,5.32288943,97711.0,97710.0,2.988144]
[1733795022066,5.32288943,97711.0,97710.0,2.98814416]
[1733795022976,5.32288943,97711.0,97710.0,2.59844518]
[1733795023672,5.32288943,97711.0,97710.0,2.29844518]
[1733795024071,5.32288943,97711.0,97710.0,2.64574501]
[1733795024370,4.86607791,97711.0,97710.0,2.6410422]
[1733795024573,4.86607791,97711.0,97710.0,3.37401177]
[1733795024574,3.52225752,97711.0,97710.0,3.37401177]
[1733795024876,1.32992249,97711.0,97710.0,3.51167219]
[1733795025064,0.83425349,97711.0,97710.0,3.51678733]
[1733795025267,0.49150795,97711.0,97710.0,3.51678733]
[1733795025572,0.32510795,97711.0,97710.0,3.51678733]
[1733795025775,0.31700795,97711.0,97710.0,3.51878733]
[1733795025967,0.30358795,97711.0,97710.0,3.51878733]
[1733795026167,0.29016795,97711.0,97710.0,3.51367219]
[1733795026365,7.743e-05,97732.0,97710.0,3.51367219]
[1733795026570,7.743e-05,97732.0,97731.0,0.411932]
[1733795026776,7.743e-05,97732.0,97731.0,1.07434909]
[1733795026969,7.743e-05,97732.0,97731.0,2.57434909]
[1733795027367,7.743e-05,97732.0,97731.0,2.27499696]
[1733795027568,7.743e-05,97732.0,97731.0,2.27499638]
[1733795027769,0.00107743,97732.0,97731.0,2.27499638]
[1733795028372,0.00107743,97732.0,97731.0,2.27599638]
[1733795029168,7.743e-05,97732.0,97731.0,2.64263866]
[1733795029370,7.743e-05,97732.0,97731.0,2.27599638]
[1733795030765,7.743e-05,97732.0,97731.0,2.28790091]
[1733795030973,7.743e-05,97732.0,97731.0,2.65446918]
[1733795031177,7.743e-05,97732.0,97731.0,2.28790091]
[1733795031565,7.743e-05,97732.0,97731.0,2.65445013]
[1733795032067,0.0403,97750.0,97749.0,0.051123]
[1733795032274,0.0403,97750.0,97749.0,0.05431968]
[1733795032671,0.0403,97750.0,97749.0,1.55431968]
[1733795033365,0.0403,97750.0,97749.0,1.61824784]
[1733795033571,0.0403,97750.0,97749.0,1.66299691]
[1733795033778,0.0403,97750.0,97749.0,1.61823987]
[1733795033974,0.0423,97750.0,97749.0,1.61823987]
[1733795034276,0.0453,97750.0,97749.0,1.98477934]
[1733795034472,0.0453,97750.0,97749.0,1.61823987]
[1733795034673,0.0453,97750.0,97749.0,1.66298634]
[1733795034975,0.0824,97761.0,97749.0,1.96298634]
[1733795035173,0.09161787,97791.0,97749.0,1.96298634]
[1733795035174,0.0814,97774.0,97773.0,0.05111]
[1733795035374,0.0814,97774.0,97773.0,0.05942003]
[1733795035681,0.45241787,97793.0,97773.0,0.4169544]
[1733795035682,0.36152,97793.0,97773.0,0.4169544]
[1733795035874,0.0392,97792.0,97788.0,0.051102]
[1733795036180,0.0392,97792.0,97789.0,0.00842535]
[1733795036376,0.0392,97792.0,97791.0,1.5]
[1733795036572,0.0392,97792.0,97791.0,1.50831003]
[1733795036769,0.0392,97792.0,97791.0,1.55941103]
[1733795038078,0.0827,97792.0,97791.0,1.55941103]
[1733795039382,0.0827,97792.0,97791.0,0.00831003]
[1733795039885,0.0827,97792.0,97791.0,1.50831003]
[1733795040180,0.0827,97792.0,97791.0,1.50319668]
[1733795041779,0.0827,97792.0,97791.0,1.50830877]
[1733795041981,0.0827,97792.0,97791.0,1.50823877]
[1733795042477,0.001,97792.0,97791.0,1.86903877]
[1733795043185,0.0386,97810.0,97791.0,2.16903877]
[1733795043379,4.5e-07,97800.0,97799.0,0.411897]
[1733795043684,4.5e-07,97800.0,97799.0,0.41700909]
[1733795044086,4.5e-07,97800.0,97799.0,2.21700909]
[1733795044275,0.0386,97810.0,97799.0,2.21700909]
[1733795044581,0.0386,97810.0,97809.0,0.411891]
[1733795044885,0.0386,97810.0,97809.0,0.41700136]
[1733795045271,0.0386,97810.0,97809.0,1.91700136]
[1733795046479,0.0386,97810.0,97809.0,1.92340586]
[1733795048086,0.0386,97810.0,97809.0,1.56260586]
[1733795048672,0.0386,97810.0,97809.0,1.51151486]
[1733795048881,0.0386,97810.0,97809.0,0.01151486]
[1733795049083,0.0386,97810.0,97800.0,0.10072189]
[1733795049383,0.0386,97810.0,97801.0,1.5]
[1733795049574,0.0386,97810.0,97808.0,0.051092]
[1733795049775,0.0386,97810.0,97801.0,1.50052]
[1733795049980,0.0386,97810.0,97801.0,1.5]
[1733795050177,0.0386,97810.0,97808.0,0.051092]
[1733795051679,0.0396,97810.0,97808.0,0.051092]
[1733795053277,0.0396,97810.0,97809.0,0.3608]
[1733795054082,0.001,97810.0,97809.0,1.86399432]
[1733795054990,0.0837,97827.0,97826.0,0.051083]
[1733795055285,0.0837,97827.0,97826.0,0.05427732]
[1733795056084,1.9e-07,97828.0,97826.0,0.05567966]
[1733795056286,0.0416,97858.0,97857.0,0.051066]
[1733795056585,0.0416,97858.0,97857.0,1.55426032]
[1733795056884,0.0005,97859.0,97857.0,1.91506032]
[1733795057083,0.0005,97859.0,97858.0,0.00319432]
[1733795057276,0.0005,97859.0,97858.0,0.00470763]
[1733795057684,0.0005,97859.0,97858.0,1.50470763]
[1733795058281,0.0005,97859.0,97858.0,1.50470607]
[1733795058683,0.0015,97859.0,97858.0,1.51591617]
[1733795059187,0.0015,97859.0,97858.0,1.52102466]
[1733795061486,0.0015,97859.0,97849.0,0.10072189]
[1733795061682,0.3608,97854.0,97850.0,0.00510896]
[1733795061882,0.3608,97854.0,97851.0,1.5]
[1733795062389,0.0307,97853.0,97851.0,1.5]
[1733795062782,0.0329,97852.0,97851.0,1.5]
[1733795063488,0.0329,97852.0,97851.0,1.50140168]
[1733795063991,0.0005,97859.0,97857.0,0.051066]
[1733795064285,0.0005,97859.0,97858.0,0.00140168]
[1733795064487,0.0932,97870.0,97868.0,0.05106]
[1733795064684,0.0329,97870.0,97868.0,0.05106]
[1733795064887,0.0329,97870.0,97869.0,1.5]
[1733795065485,0.0329,97870.0,97869.0,1.50140168]
[1733795066795,0.0359,97870.0,97869.0,1.50140168]
[1733795069391,0.0359,97870.0,97869.0,1.50280459]
[1733795069779,0.0359,97870.0,97860.0,0.051064]
[1733795069985,0.3608,97864.0,97860.0,0.051064]
[1733795070793,0.3608,97864.0,97863.0,1.5]
[1733795071593,0.3608,97864.0,97863.0,1.5051087]
[1733795071895,0.3618,97864.0,97863.0,1.5051087]
[1733795072691,0.001,97864.0,97863.0,1.5051087]
[1733795073483,0.0001015,97871.0,97870.0,0.05106]
[1733795073682,0.0001015,97871.0,97870.0,0.0593614]
[1733795074083,0.0001015,97871.0,97870.0,1.5593614]
[1733795074480,0.0001015,97871.0,97870.0,1.5083014]
[1733795074689,0.0031015,97871.0,97870.0,1.5083014]
[1733795076193,0.0031015,97871.0,97870.0,1.5]
[1733795077194,0.0001015,97871.0,97870.0,1.50830063]
[1733795077395,0.0031015,97871.0,97870.0,1.5]
[1733795078787,0.0031015,97871.0,97870.0,1.50319269]
[1733795078983,0.0031015,97871.0,97870.0,1.508301]
[1733795081293,0.09414593,97871.0,97870.0,1.508301]
[1733795081501,0.0031015,97871.0,97870.0,1.508301]
[1733795081686,0.0031015,97871.0,97838.0,0.0328]
[1733795081889,0.3608,97850.0,97849.0,0.05116665]
[1733795082103,0.33780718,97850.0,97849.0,1.55116665]
[1733795082395,0.33780718,97850.0,97849.0,1.56282338]
[1733795082699,0.33780718,97850.0,97849.0,1.50009565]
[1733795083797,0.33780718,97850.0,97849.0,1.50109565]
[1733795083998,0.45979995,97850.0,97849.0,1.50409565]
[1733795084199,0.33780718,97850.0,97849.0,1.50409565]
[1733795084395,0.33780718,97850.0,97849.0,1.50309565]
[1733795084701,0.33780718,97850.0,97849.0,0.00309565]
[1733795084702,0.45985584,97850.0,97849.0,0.00309565]
[1733795084999,0.45985436,97850.0,97849.0,0.05216665]
[1733795085297,0.33780718,97850.0,97849.0,1.55416665]
[1733795085711,0.33780718,97850.0,97849.0,1.50309565]
[1733795086399,0.45987394,97850.0,97849.0,1.50309565]
[1733795086695,0.33780718,97850.0,97849.0,1.50309565]
[1733795087098,0.459871,97850.0,97849.0,1.50109565]
[1733795087302,0.33780718,97850.0,97849.0,1.50409565]
[1733795088197,0.33780718,97850.0,97849.0,1.50209565]
[1733795088396,0.42931209,97850.0,97849.0,1.50549739]
[1733795088596,0.33780718,97850.0,97849.0,1.50549739]
[1733795088796,0.33780718,97850.0,97849.0,1.50349739]
[1733795088994,0.33780718,97850.0,97849.0,1.50549739]
[1733795089609,0.42929183,97850.0,97849.0,1.50549739]
[1733795089809,0.63780718,97850.0,97833.0,0.051079]
[1733795090001,0.3608,97834.0,97833.0,0.051079]
[1733795090301,0.7216,97834.0,97833.0,1.551079]
[1733795090500,0.7517,97834.0,97833.0,1.551079]
[1733795091302,0.7517,97834.0,97833.0,1.557079]
[1733795091903,0.7517,97834.0,97833.0,1.561079]
[1733795092202,0.76300171,97834.0,97833.0,1.561079]
[1733795093097,0.76300171,97834.0,97833.0,1.51]
[1733795093795,0.76300171,97834.0,97833.0,1.51219441]
[1733795096696,0.76300171,97834.0,97833.0,1.51359642]
[1733795096896,0.76300171,97834.0,97833.0,0.01359642]
[1733795097804,0.76300171,97834.0,97833.0,0.01040201]
[1733795099401,0.76300171,97834.0,97833.0,0.00440201]
[1733795100111,0.76300171,97834.0,97833.0,0.00240201]
[1733795101005,0.76300171,97834.0,97833.0,0.00140201]
[1733795101197,0.76300171,97834.0,97833.0,1.50140201]
[1733795102604,0.73290171,97834.0,97833.0,1.50140201]
[1733795104805,0.73290171,97834.0,97833.0,1.50459666]
[1733795105005,0.73290171,97834.0,97833.0,1.5059987]
[1733795105711,0.7216,97834.0,97833.0,1.5570777]
[1733795107407,0.7216,97834.0,97833.0,1.5059987]
[1733795107605,0.7216,97834.0,97833.0,1.5109987]
[1733795108006,0.051073,97844.0,97833.0,1.5109987]
[1733795108202,0.3608,97841.0,97835.0,0.18238631]
[1733795108411,0.3608,97841.0,97836.0,0.18558096]
[1733795108609,0.3608,97841.0,97838.0,0.18238631]
[1733795108805,0.3608,97841.0,97839.0,0.18558096]
[1733795109009,0.3608,97841.0,97840.0,0.0059987]
[1733795109214,0.3608,97841.0,97840.0,0.18838501]
[1733795109419,0.3608,97841.0,97840.0,0.0059987]
[1733795109716,0.3608,97841.0,97840.0,0.18838501]
[1733795110214,0.3608,97841.0,97840.0,0.0059987]
[1733795110808,0.3608,97841.0,97840.0,0.18921447]
[1733795111012,0.3608,97841.0,97840.0,0.0089987]
[1733795111808,0.3608,97841.0,97840.0,0.00899809]
[1733795112009,0.3608,97841.0,97840.0,0.01499809]
[1733795112411,0.6608,97841.0,97840.0,0.00919404]
[1733795112703,0.6608,97841.0,97823.0,0.18321577]
[1733795112914,0.6608,97841.0,97813.0,0.0309]
[1733795112915,0.051084,97823.0,97819.0,0.18339426]
[1733795113116,0.051084,97823.0,97808.0,0.09463714]
[1733795113117,0.051084,97823.0,97822.0,0.00148611]
[1733795114209,0.05117906,97823.0,97822.0,0.00148611]
[1733795115517,0.05117906,97823.0,97822.0,0.00348611]
[1733795116515,0.06234493,97823.0,97822.0,0.00348611]
[1733795116815,0.01126093,97823.0,97822.0,0.00348611]
[1733795117116,9.506e-05,97823.0,97822.0,0.00348611]
[1733795117309,0.09153122,97823.0,97822.0,0.06828611]
[1733795117513,9.506e-05,97823.0,97822.0,0.10078611]
[1733795117817,9.506e-05,97823.0,97822.0,1.78418037]
[1733795118410,9.506e-05,97823.0,97822.0,1.60078611]
[1733795119510,9.506e-05,97823.0,97822.0,1.85530992]
[1733795120714,9.506e-05,97823.0,97822.0,1.90002716]
[1733795121416,9.506e-05,97823.0,97822.0,1.65818561]
[1733795121619,9.506e-05,97823.0,97822.0,1.61346837]
[1733795122312,9.506e-05,97823.0,97822.0,1.85670314]
[1733795122515,9.506e-05,97823.0,97822.0,1.61346837]
[1733795123123,0.0008,97824.0,97823.0,0.051084]
[1733795123321,0.3608,97832.0,97828.0,0.051081]
[1733795123525,0.3608,97832.0,97830.0,0.00278663]
[1733795123718,0.3608,97832.0,97831.0,1.5]
[1733795124020,0.3608,97832.0,97831.0,1.84875739]
[1733795124216,0.3608,97832.0,97831.0,1.80404346]
[1733795124420,0.00010119,97834.0,97832.0,0.051079]
[1733795124611,0.00010119,97834.0,97833.0,0.35450549]
[1733795125617,0.00010119,97834.0,97833.0,0.35729212]
[1733795125923,0.00410119,97834.0,97833.0,0.35729212]
[1733795126111,0.00410119,97834.0,97833.0,1.85729212]
[1733795126315,0.3608,97854.0,97841.0,0.051075]
[1733795126512,0.3608,97854.0,97851.0,0.051069]
[1733795126819,0.3608,97854.0,97852.0,0.08746283]
[1733795127019,0.3608,97854.0,97853.0,1.50319383]
[1733795127215,0.00012905,97854.0,97853.0,1.50319383]
[1733795127610,0.00012905,97854.0,97853.0,1.68911904]
[1733795127817,0.00012905,97854.0,97853.0,1.50598046]
[1733795128424,0.00212905,97854.0,97853.0,1.75024011]
[1733795128615,0.00212905,97854.0,97853.0,1.50598046]
[1733795129015,0.00612905,97854.0,97853.0,1.50598046]
[1733795129317,0.00612905,97854.0,97853.0,1.74783607]
[1733795129527,0.00612905,97854.0,97853.0,1.81169449]
[1733795129725,0.00612905,97854.0,97853.0,1.85639732]
[1733795130119,0.00612905,97854.0,97853.0,1.81169449]
[1733795130322,0.00612905,97854.0,97853.0,1.8563946]
[1733795130624,0.00612905,97854.0,97853.0,2.16125993]
[1733795130822,0.00612905,97854.0,97853.0,2.16125896]
[1733795131012,0.00612905,97854.0,97853.0,1.61453802]
[1733795131213,0.00612905,97854.0,97853.0,1.56983791]
[1733795131418,0.00612905,97854.0,97853.0,1.50597949]
[1733795131726,0.00612905,97854.0,97853.0,1.55067991]
[1733795133417,0.00612905,97854.0,97853.0,1.50597949]
[1733795137225,0.00612905,97854.0,97853.0,1.50597948]
[1733795138022,0.3608,97873.0,97853.0,1.50597948]
[1733795138228,0.3608,97873.0,97872.0,0.051059]
[1733795138427,0.3608,97873.0,97872.0,0.05425185]
[1733795138728,0.3608,97873.0,97872.0,1.55703848]
[1733795138923,0.0317,97880.0,97879.0,0.051055]
[1733795139126,0.03179784,97880.0,97879.0,0.051055]
[1733795139727,0.03179784,97880.0,97879.0,0.05703448]
[1733795139927,0.03179784,97880.0,97879.0,0.05384163]
[1733795140132,0.03579784,97880.0,97879.0,0.0580341]
[1733795141528,0.04079784,97880.0,97879.0,0.05484163]
[1733795141725,0.04079784,97880.0,97879.0,0.0580341]
[1733795143235,0.04079784,97880.0,97879.0,0.06922991]
[1733795143427,0.00909784,97880.0,97879.0,0.06922986]
[1733795144125,0.00909784,97880.0,97879.0,1.56922986]
[1733795144428,0.00509784,97880.0,97879.0,1.7521491]
[1733795144726,0.0649,97899.0,97879.0,1.56922986]
[1733795144927,0.0649,97899.0,97897.0,0.051045]
[1733795145136,0.0649,97899.0,97898.0,0.00319242]
[1733795145137,0.0331,97899.0,97898.0,0.00319242]
[1733795145523,0.1,97900.0,97899.0,0.051044]
[1733795145731,0.1,97900.0,97899.0,0.05712598]
[1733795146532,0.1,97900.0,97899.0,1.55712598]
[1733795147234,0.1,97900.0,97899.0,1.50608198]
[1733795147831,0.101,97900.0,97899.0,1.50608198]
[1733795148135,0.101,97900.0,97899.0,0.01745468]
[1733795149035,0.101,97900.0,97896.0,1.50052]
[1733795149235,0.4243,97899.0,97889.0,0.05105]
[1733795149438,0.4243,97899.0,97889.0,0.06243033]
[1733795149625,0.51573616,97899.0,97889.0,0.06243033]
[1733795149830,0.51573616,97899.0,97890.0,1.5]
[1733795150031,0.51573616,97899.0,97893.0,0.051047]